bitfinex/quotes_BTCUSD_20230111
["timestamp","ask_amount","ask_price","bid_price","bid_amount"]
[1673400333350,5.2764469,17465.0,17464.0,0.0196252]
[1673400333633,4.10281039,17465.0,17464.0,0.5922312]
[1673400334076,4.53183459,17465.0,17464.0,0.5922312]
[1673400334307,4.53183529,17465.0,17464.0,0.5922312]
[1673400335184,3.38620127,17465.0,17464.0,0.5922312]
[1673400335403,3.38620127,17465.0,17464.0,1.1648372]
[1673400336049,2.95717637,17465.0,17464.0,1.1648372]
[1673400336551,3.38620906,17465.0,17464.0,1.1648372]
[1673400336798,3.5841261,17465.0,17464.0,1.1648372]
[1673400337045,3.32672094,17465.0,17464.0,1.1648372]
[1673400337310,3.1550671,17465.0,17464.0,1.1648372]
[1673400338083,3.0190671,17465.0,17464.0,1.1648372]
[1673400338326,3.1540671,17465.0,17464.0,1.1668372]
[1673400338822,3.19072094,17465.0,17464.0,1.1648372]
[1673400339332,3.01906573,17465.0,17464.0,1.1648372]
[1673400339855,3.11206573,17465.0,17464.0,1.1668372]
[1673400340377,0.5219432,17465.0,17464.0,1.4531372]
[1673400340637,0.5219432,17465.0,17464.0,1.8119042]
[1673400341684,0.69358815,17465.0,17464.0,1.8119042]
[1673400342196,0.52191786,17465.0,17464.0,1.4531372]
[1673400342732,1.83906716,17465.0,17464.0,1.4531372]
[1673400343983,1.66737842,17465.0,17464.0,1.4531372]
[1673400345449,1.41000094,17465.0,17464.0,1.4531372]
[1673400346686,0.52189941,17465.0,17464.0,1.4531372]
[1673400347186,0.26452193,17465.0,17464.0,1.4531372]
[1673400347944,0.26452193,17465.0,17464.0,1.7531372]
[1673400348196,0.26452193,17465.0,17464.0,1.4531372]
[1673400349470,0.093,17465.0,17464.0,1.4531372]
[1673400349720,0.093,17465.0,17464.0,1.7531372]
[1673400352335,0.093,17465.0,17464.0,2.1119042]
[1673400353363,0.96650671,17465.0,17464.0,1.8119042]
[1673400353622,0.96650671,17465.0,17464.0,1.4531372]
[1673400354687,0.79498478,17465.0,17464.0,1.8119042]
[1673400354955,0.96650671,17465.0,17464.0,1.8119042]
[1673400355208,0.79498478,17465.0,17464.0,1.8119042]
[1673400355980,0.96650671,17465.0,17464.0,1.8119042]
[1673400356242,0.79498478,17465.0,17464.0,1.8119042]
[1673400356769,0.96650671,17465.0,17464.0,1.8119042]
[1673400357536,0.79498478,17465.0,17464.0,1.8119042]
[1673400358831,0.79498478,17465.0,17464.0,1.4531372]
[1673400359599,0.96650671,17465.0,17464.0,1.4531372]
[1673400364723,0.96650671,17465.0,17464.0,1.1668372]
[1673400364724,1.63325082,17465.0,17464.0,1.1668372]
[1673400364981,1.39557293,17465.0,17464.0,1.16674977]
[1673400365245,2.22221164,17465.0,17464.0,1.16674977]
[1673400365518,2.23776797,17465.0,17464.0,1.16674977]
[1673400365768,1.87900097,17465.0,17464.0,1.16674977]
[1673400367371,1.44996828,17465.0,17464.0,1.16674977]
[1673400367629,1.87859728,17465.0,17464.0,1.16674977]
[1673400369270,1.44996828,17465.0,17464.0,1.16674977]
[1673400369751,1.44996828,17465.0,17464.0,0.59414377]
[1673400370024,0.7479835,17465.0,17464.0,0.59414377]
[1673400370276,1.3979756,17465.0,17464.0,0.02153777]
[1673400370547,1.7567426,17465.0,17464.0,0.02153777]
[1673400370842,1.33821615,17465.0,17464.0,0.02153777]
[1673400371099,1.69698315,17465.0,17464.0,0.02153777]
[1673400371900,1.56186056,17465.0,17464.0,0.00515177]
[1673400372439,2.70745099,17465.0,17464.0,0.00515177]
[1673400374367,2.87044151,17465.0,17464.0,0.00515177]
[1673400376529,3.34090886,17465.0,17464.0,0.00078785]
[1673400377047,3.91887042,17465.0,17464.0,0.00078785]
[1673400377836,2.77327999,17465.0,17464.0,0.00078785]
[1673400378110,2.86303944,17465.0,17464.0,0.006]
[1673400378364,2.44003944,17465.0,17462.0,0.01730607]
[1673400378625,1.52831844,17465.0,17464.0,0.006]
[1673400378908,1.46601723,17465.0,17464.0,0.006]
[1673400379194,2.86151761,17465.0,17464.0,0.006]
[1673400379448,0.3,17464.0,17462.0,0.01730607]
[1673400379704,0.94990535,17463.0,17462.0,0.02330607]
[1673400379963,0.87621723,17463.0,17462.0,0.01730607]
[1673400380254,1.30445336,17463.0,17462.0,0.01730607]
[1673400380511,1.60445336,17463.0,17462.0,0.01730607]
[1673400380767,1.17621723,17463.0,17462.0,0.01730607]
[1673400381023,1.15221723,17463.0,17462.0,0.01730607]
[1673400381285,1.20221723,17463.0,17462.0,0.02330607]
[1673400381850,1.79781272,17463.0,17462.0,0.02330607]
[1673400382113,2.22602961,17463.0,17462.0,0.02330607]
[1673400383701,1.79781272,17463.0,17462.0,0.02330607]
[1673400383997,2.22592853,17463.0,17462.0,0.02330607]
[1673400384574,2.22586953,17463.0,17462.0,0.02330607]
[1673400388230,1.63017605,17463.0,17462.0,0.02330607]
[1673400388499,1.20211924,17463.0,17462.0,0.02330607]
[1673400388762,1.75515239,17463.0,17462.0,0.02330607]
[1673400389277,2.1831294,17463.0,17462.0,0.02330607]
[1673400389556,1.93131595,17463.0,17462.0,0.02330607]
[1673400389831,1.20211924,17463.0,17462.0,0.02330607]
[1673400390401,1.42008177,17463.0,17462.0,0.02330607]
[1673400390675,2.25928779,17463.0,17462.0,0.02330607]
[1673400391500,2.04132526,17463.0,17462.0,0.02330607]
[1673400392013,0.3,17462.0,17461.0,0.01102865]
[1673400392282,2.60391694,17462.0,17461.0,0.01102865]
[1673400392543,2.42835944,17462.0,17461.0,0.01005054]
[1673400392793,2.41943642,17462.0,17461.0,0.01005054]
[1673400393055,2.42835944,17462.0,17461.0,0.01005054]
[1673400393307,2.45221263,17462.0,17461.0,0.01005054]
[1673400393830,2.45621263,17462.0,17461.0,0.03505054]
[1673400394860,2.45626086,17462.0,17461.0,0.03505054]
[1673400395115,2.45626086,17462.0,17461.0,0.03104011]
[1673400395368,2.1138279,17462.0,17461.0,0.03104011]
[1673400395613,1.8138279,17462.0,17461.0,0.03104011]
[1673400395861,2.15632837,17462.0,17461.0,0.03104011]
[1673400396898,2.15634038,17462.0,17461.0,0.03104011]
[1673400397457,1.8138279,17462.0,17461.0,0.03104011]
[1673400398163,2.04156069,17462.0,17461.0,0.03104011]
[1673400399432,1.61357196,17462.0,17461.0,0.03104011]
[1673400400448,2.04203599,17462.0,17461.0,0.03104011]
[1673400401194,1.4553282,17462.0,17461.0,0.03104011]
[1673400401471,1.8143032,17462.0,17461.0,0.03104011]
[1673400401710,1.4553282,17462.0,17461.0,0.03104011]
[1673400401984,2.96012245,17462.0,17461.0,0.03104011]
[1673400402484,2.17268342,17462.0,17461.0,0.03104011]
[1673400402746,2.53165842,17462.0,17461.0,0.03104011]
[1673400403235,2.96013859,17462.0,17461.0,0.03104011]
[1673400403477,2.53165842,17462.0,17461.0,0.03104011]
[1673400404703,2.17268342,17462.0,17461.0,0.03104011]
[1673400405194,1.38583917,17462.0,17461.0,0.03104011]
[1673400407746,1.02686417,17462.0,17461.0,0.03104011]
[1673400409077,1.38583917,17462.0,17461.0,0.03104011]
[1673400410393,1.54087019,17462.0,17461.0,0.03104011]
[1673400411180,2.68666344,17462.0,17461.0,0.03104011]
[1673400411483,3.04563844,17462.0,17461.0,0.03104011]
[1673400411705,3.36065478,17462.0,17461.0,0.03104011]
[1673400414055,3.00167978,17462.0,17461.0,0.03104011]
[1673400414339,1.89984519,17462.0,17461.0,0.03104011]
[1673400416068,1.89984519,17462.0,17461.0,0.03095024]
[1673400416575,1.68583917,17462.0,17461.0,0.03095024]
[1673400416837,1.84216565,17462.0,17461.0,0.03095024]
[1673400417083,1.54216565,17462.0,17461.0,0.03095024]
[1673400417342,1.02686417,17462.0,17461.0,0.03095024]
[1673400418101,1.54216565,17462.0,17461.0,0.03095024]
[1673400420134,1.54216565,17462.0,17461.0,0.60365424]
[1673400420423,2.68796926,17462.0,17461.0,0.60365424]
[1673400420913,3.04694426,17462.0,17461.0,0.60365424]
[1673400421695,2.68796926,17462.0,17461.0,0.60365424]
[1673400421931,3.04694426,17462.0,17461.0,0.60365424]
[1673400422689,2.68796926,17462.0,17461.0,0.60365424]
[1673400425782,3.04694426,17462.0,17461.0,0.60365424]
[1673400426260,3.04694426,17462.0,17461.0,1.17635824]
[1673400426842,3.04694426,17462.0,17461.0,0.60365424]
[1673400426843,1.90114065,17462.0,17461.0,0.60365424]
[1673400427061,1.54216565,17462.0,17461.0,0.60365424]
[1673400429569,2.68792474,17462.0,17461.0,0.60365424]
[1673400431050,3.04689974,17462.0,17461.0,0.60365424]
[1673400431271,1.54216565,17462.0,17461.0,0.60365424]
[1673400436830,1.02686417,17462.0,17461.0,0.60365424]
[1673400437055,1.02186417,17462.0,17461.0,0.60365424]
[1673400439053,2.1676313,17462.0,17461.0,0.60365424]
[1673400441627,3.04190778,17462.0,17461.0,0.60365424]
[1673400442403,2.68293278,17462.0,17461.0,0.60365424]
[1673400442661,1.89614065,17462.0,17461.0,0.60365424]
[1673400442928,1.53716565,17462.0,17461.0,0.60365424]
[1673400446539,1.53716565,17462.0,17461.0,1.17635824]
[1673400447057,1.53716565,17462.0,17461.0,0.60365424]
[1673400448612,2.68292946,17462.0,17461.0,0.60365424]
[1673400449614,2.52660298,17462.0,17461.0,0.60365424]
[1673400449910,2.52660298,17462.0,17461.0,0.03095024]
[1673400450146,2.16762798,17462.0,17460.0,0.16685915]
[1673400450420,2.16762798,17462.0,17460.0,0.73957415]
[1673400450421,1.49819021,17461.0,17460.0,0.73957415]
[1673400452681,1.51319021,17461.0,17460.0,0.76657415]
[1673400458461,2.65904658,17461.0,17460.0,0.76657415]
[1673400458707,2.64404658,17461.0,17460.0,0.73957415]
[1673400458978,2.65504658,17461.0,17460.0,0.76357415]
[1673400459235,2.93955124,17461.0,17460.0,0.73957415]
[1673400459485,3.30352624,17461.0,17460.0,0.75357415]
[1673400459742,3.00802158,17461.0,17460.0,0.75357415]
[1673400460251,2.64904658,17461.0,17460.0,0.75357415]
[1673400460505,2.13375606,17461.0,17460.0,0.75357415]
[1673400461027,0.98789969,17461.0,17460.0,0.75357415]
[1673400462054,1.41709048,17461.0,17460.0,0.75357415]
[1673400463562,1.41709048,17461.0,17460.0,0.18085915]
[1673400465080,0.98789969,17461.0,17460.0,0.18085915]
[1673400465550,1.41710398,17461.0,17460.0,0.18085915]
[1673400466051,1.41710398,17461.0,17460.0,0.20449711]
[1673400466554,0.98789969,17461.0,17460.0,0.20449711]
[1673400467080,1.41710799,17461.0,17460.0,0.77723411]
[1673400468597,0.98789969,17461.0,17460.0,0.77723411]
[1673400469096,2.13368443,17461.0,17460.0,0.77723411]
[1673400469872,2.13368443,17461.0,17460.0,0.20449711]
[1673400471397,2.13368443,17461.0,17460.0,0.20443539]
[1673400472934,2.562912,17461.0,17460.0,0.20443539]
[1673400473199,1.41712726,17461.0,17460.0,0.20443539]
[1673400473925,0.98789969,17461.0,17460.0,0.20443539]
[1673400474954,0.98789969,17461.0,17460.0,0.77717239]
[1673400477265,1.50319021,17461.0,17460.0,0.20443539]
[1673400477911,1.68350923,17461.0,17460.0,0.20443539]
[1673400478321,1.50319021,17461.0,17460.0,0.20443539]
[1673400479091,2.64898788,17461.0,17460.0,0.20443539]
[1673400482228,1.50319021,17461.0,17460.0,0.20443539]
[1673400482747,1.50319021,17461.0,17460.0,0.03763796]
[1673400483056,1.40080232,17461.0,17460.0,0.03763796]
[1673400483281,1.4079868,17461.0,17460.0,0.00657363]
[1673400483806,1.7079868,17461.0,17460.0,0.00657363]
[1673400484329,1.75967057,17461.0,17460.0,0.00657363]
[1673400484567,1.75467057,17461.0,17460.0,0.00657363]
[1673400484824,1.1805118,17461.0,17460.0,0.00657363]
[1673400485081,1.2535118,17461.0,17460.0,0.00757363]
[1673400485335,1.46869928,17461.0,17460.0,0.00757363]
[1673400485638,1.2535118,17461.0,17460.0,0.00757363]
[1673400486621,1.45300914,17461.0,17460.0,0.00757363]
[1673400487417,1.25342966,17461.0,17460.0,0.00757363]
[1673400488219,2.39933816,17461.0,17460.0,0.00757363]
[1673400488435,2.75831316,17461.0,17460.0,0.00757363]
[1673400489486,1.61240466,17461.0,17460.0,0.00757363]
[1673400489723,1.25342966,17461.0,17460.0,0.00757363]
[1673400491827,2.61725302,17461.0,17460.0,0.00757363]
[1673400492109,2.39826646,17461.0,17460.0,0.00757363]
[1673400493153,2.03929146,17461.0,17460.0,0.00757363]
[1673400493703,2.39826646,17461.0,17460.0,0.00757363]
[1673400493962,2.97622802,17461.0,17460.0,0.00757363]
[1673400494222,1.86780785,17461.0,17460.0,0.00757363]
[1673400494709,2.43421035,17461.0,17460.0,0.00757363]
[1673400495266,2.07523535,17461.0,17460.0,0.00757363]
[1673400495532,2.44576941,17461.0,17460.0,0.00757363]
[1673400495816,2.08679441,17461.0,17460.0,0.00757363]
[1673400496086,1.86780785,17461.0,17460.0,0.00757363]
[1673400496347,3.01481629,17461.0,17460.0,0.00757363]
[1673400496608,2.57322574,17461.0,17460.0,0.00757363]
[1673400496879,2.21425074,17461.0,17460.0,0.00757363]
[1673400497147,2.31646932,17461.0,17460.0,0.00757363]
[1673400499053,3.46243748,17461.0,17460.0,0.00757363]
[1673400499305,3.98083767,17461.0,17460.0,0.00757363]
[1673400501415,4.14433767,17461.0,17460.0,0.00757363]
[1673400502966,3.43891978,17461.0,17460.0,0.00757363]
[1673400503228,5.4689764,17461.0,17460.0,0.00098517]
[1673400503499,6.0416804,17461.0,17458.0,0.01769156]
[1673400503763,6.0416804,17461.0,17458.0,0.01671487]
[1673400503764,2.87313588,17460.0,17458.0,0.01671487]
[1673400504259,1.7844828,17459.0,17458.0,0.01671487]
[1673400504263,1.56445143,17459.0,17458.0,0.01671487]
[1673400504787,1.91541341,17459.0,17458.0,0.01671487]
[1673400505055,2.21547341,17459.0,17458.0,0.01671487]
[1673400506362,2.77861062,17459.0,17458.0,0.01671487]
[1673400506652,2.91461062,17459.0,17458.0,0.01671487]
[1673400507689,3.36749832,17459.0,17458.0,0.01671487]
[1673400508540,3.59952762,17459.0,17458.0,0.01671487]
[1673400508806,4.70868076,17459.0,17458.0,0.01671487]
[1673400509074,4.25172297,17459.0,17458.0,0.01671487]
[1673400509553,4.08882297,17459.0,17458.0,0.01671487]
[1673400510320,4.10282514,17459.0,17458.0,0.01671487]
[1673400511095,3.49807002,17459.0,17458.0,0.01671487]
[1673400511362,4.2182987,17459.0,17458.0,0.01671487]
[1673400512419,3.07217021,17459.0,17458.0,0.01671487]
[1673400513548,0.87738927,17458.0,17457.0,0.53954187]
[1673400513819,1.9167588,17458.0,17457.0,0.53954187]
[1673400514080,1.9167588,17458.0,17456.0,8.5925123]
[1673400514337,1.36660334,17457.0,17456.0,8.5925123]
[1673400514873,1.36660334,17457.0,17456.0,8.59152477]
[1673400516178,0.93802503,17457.0,17456.0,8.59152477]
[1673400516445,1.36662375,17457.0,17456.0,8.59152477]
[1673400516714,1.50062375,17457.0,17456.0,8.59152477]
[1673400516972,1.49882375,17457.0,17456.0,8.59152477]
[1673400517420,0.91076977,17457.0,17456.0,9.16439277]
[1673400517422,0.90550162,17457.0,17456.0,9.16439277]
[1673400517677,1.80532421,17457.0,17456.0,9.16439277]
[1673400517938,1.24172549,17457.0,17456.0,9.16439277]
[1673400518195,1.4131492,17457.0,17456.0,9.16439277]
[1673400518455,1.4132092,17457.0,17456.0,9.16439277]
[1673400518969,1.5472092,17457.0,17456.0,9.16439277]
[1673400519517,0.7341833,17457.0,17456.0,9.93120535]
[1673400520047,0.7341833,17457.0,17456.0,10.02060746]
[1673400520048,0.17154367,17457.0,17456.0,10.02060746]
[1673400520052,0.17154367,17457.0,17456.0,10.37958246]
[1673400520569,0.30654367,17457.0,17456.0,10.21608246]
[1673400520825,0.17154367,17457.0,17456.0,10.21608246]
[1673400521100,0.30554367,17457.0,17456.0,10.21608246]
[1673400521356,6e-05,17457.0,17456.0,10.21608246]
[1673400521619,0.00606,17457.0,17456.0,10.21608246]
[1673400522398,0.17754367,17457.0,17456.0,10.21608246]
[1673400522657,6e-05,17457.0,17456.0,10.21608246]
[1673400522930,0.24154367,17457.0,17456.0,10.21608246]
[1673400523213,0.17154367,17457.0,17456.0,10.21608246]
[1673400523472,0.17748367,17457.0,17456.0,10.21608246]
[1673400523785,0.17148367,17457.0,17456.0,10.21608246]
[1673400524069,0.24148367,17457.0,17456.0,10.21608246]
[1673400524325,0.49870407,17457.0,17456.0,10.21608246]
[1673400524584,0.42870407,17457.0,17456.0,10.21608246]
[1673400525854,0.17748367,17457.0,17456.0,10.21608246]
[1673400526120,0.43470407,17457.0,17456.0,10.21608246]
[1673400527401,0.6061233,17457.0,17456.0,10.21608246]
[1673400529854,0.43478293,17457.0,17456.0,10.21608246]
[1673400530535,1.58080602,17457.0,17456.0,10.21608246]
[1673400531417,1.58080602,17457.0,17456.0,10.05258246]
[1673400532048,1.32358562,17457.0,17456.0,10.05258246]
[1673400532717,1.31758562,17457.0,17456.0,10.05258246]
[1673400533166,1.38758562,17457.0,17456.0,10.05258246]
[1673400533487,1.31758562,17457.0,17456.0,10.05258246]
[1673400533925,1.32358562,17457.0,17456.0,10.05258246]
[1673400535034,1.31758562,17457.0,17456.0,10.05258246]
[1673400535483,1.38758562,17457.0,17456.0,10.05258246]
[1673400538436,0.24156253,17457.0,17456.0,10.05258246]
[1673400542436,0.49878293,17457.0,17456.0,10.05258246]
[1673400542956,0.49878293,17457.0,17456.0,10.05248464]
[1673400543489,0.6701233,17457.0,17456.0,9.52326995]
[1673400544508,1.3173504,17457.0,17456.0,9.52326995]
[1673400544792,1.85516466,17457.0,17456.0,8.59142695]
[1673400545028,2.03906024,17457.0,17456.0,8.59142695]
[1673400545284,1.61046152,17457.0,17456.0,8.01858395]
[1673400548176,2.12479162,17457.0,17456.0,8.01858395]
[1673400548439,2.90608637,17457.0,17456.0,6.89029521]
[1673400548754,3.79711469,17457.0,17456.0,6.89029521]
[1673400549557,2.63555749,17457.0,17456.0,6.89029521]
[1673400549820,2.93555749,17457.0,17456.0,6.89029521]
[1673400550133,3.93332818,17457.0,17456.0,6.89029521]
[1673400550383,3.50839349,17457.0,17456.0,6.89029521]
[1673400551166,3.65263654,17457.0,17456.0,6.89029521]
[1673400551472,3.31827982,17457.0,17456.0,6.89029521]
[1673400551726,2.12730026,17457.0,17456.0,6.89029521]
[1673400551984,2.64138424,17457.0,17456.0,6.89029521]
[1673400552239,3.08576445,17457.0,17456.0,6.89029521]
[1673400552515,3.03687362,17457.0,17456.0,6.89029521]
[1673400552984,2.90187362,17457.0,17456.0,6.89029521]
[1673400552985,3.03787362,17457.0,17456.0,6.89029521]
[1673400553249,3.61070962,17457.0,17456.0,6.89029521]
[1673400553513,3.39665462,17457.0,17456.0,6.89029521]
[1673400553773,3.39665462,17457.0,17456.0,5.53623336]
[1673400554049,3.91054902,17457.0,17456.0,5.53623336]
[1673400554303,3.51503066,17457.0,17456.0,5.53623336]
[1673400555086,3.51498827,17457.0,17456.0,5.53623336]
[1673400555359,3.00113626,17457.0,17456.0,5.53623336]
[1673400555881,3.51499337,17457.0,17456.0,5.53623336]
[1673400556408,3.82091191,17457.0,17456.0,5.53623336]
[1673400556909,4.22680247,17457.0,17456.0,5.53623336]
[1673400556910,4.06330247,17457.0,17456.0,5.53623336]
[1673400557162,4.59634386,17457.0,17456.0,5.53623336]
[1673400557961,5.74260412,17457.0,17456.0,5.53623336]
[1673400558206,5.88575254,17457.0,17456.0,5.53623336]
[1673400558985,4.73949228,17457.0,17456.0,5.53623336]
[1673400561140,4.54548451,17457.0,17456.0,5.53623336]
[1673400564030,4.54548451,17457.0,17456.0,4.18206894]
[1673400566547,4.17904857,17457.0,17456.0,2.74531161]
[1673400567375,5.94179094,17457.0,17456.0,1.9420378]
[1673400567882,8.80777293,17457.0,17456.0,1.9420378]
[1673400571508,5.94179094,17457.0,17456.0,1.9420378]
[1673400574677,5.94179094,17457.0,17456.0,1.6728067]
[1673400575475,5.36278457,17457.0,17456.0,1.6728067]
[1673400577027,5.63178806,17457.0,17456.0,1.6728067]
[1673400578348,8.49809758,17457.0,17456.0,1.6728067]
[1673400581445,6.99390756,17457.0,17456.0,1.6728067]
[1673400582831,4.12759804,17457.0,17456.0,1.6728067]
[1673400585552,4.70438806,17457.0,17456.0,1.6728067]
[1673400586600,4.69588806,17457.0,17456.0,1.6728067]
[1673400587387,4.88081106,17457.0,17456.0,1.6728067]
[1673400588006,4.69588806,17457.0,17456.0,1.6728067]
[1673400588408,7.56190785,17457.0,17456.0,1.6728067]
[1673400588706,6.98511783,17457.0,17456.0,1.6728067]
[1673400591292,6.9858743,17457.0,17456.0,1.50552604]
[1673400591543,7.56526536,17457.0,17456.0,1.50552604]
[1673400592332,4.69924557,17457.0,17456.0,1.50552604]
[1673400593644,6.31688582,17457.0,17456.0,1.50552604]
[1673400593892,6.18088582,17457.0,17456.0,1.50552604]
[1673400594159,6.31788582,17457.0,17456.0,1.50552604]
[1673400594694,6.45488582,17457.0,17456.0,1.50552604]
[1673400597258,9.48466687,17457.0,17456.0,1.44671642]
[1673400597537,8.87112516,17457.0,17456.0,1.44671642]
[1673400598054,8.59712516,17457.0,17456.0,1.44671642]
[1673400598454,8.50442662,17457.0,17456.0,1.44671642]
[1673400598457,8.36742662,17457.0,17456.0,1.44671642]
[1673400598697,8.50442662,17457.0,17456.0,1.44671642]
[1673400599375,7.62748889,17457.0,17456.0,1.17532812]
[1673400599611,6.48097647,17457.0,17456.0,0.55485391]
[1673400599842,5.63814557,17457.0,17456.0,0.55485391]
[1673400601366,5.47464557,17457.0,17456.0,0.55485391]
[1673400602484,1.09779,17456.0,17455.0,0.01949636]
[1673400602700,5.41786516,17456.0,17455.0,0.01949636]
[1673400603360,6.26056495,17456.0,17455.0,0.01949636]
[1673400604097,6.09706495,17456.0,17455.0,0.01949636]
[1673400604324,5.65473389,17456.0,17455.0,0.01949636]
[1673400605014,5.51773389,17456.0,17455.0,0.01949636]
[1673400605232,5.65473389,17456.0,17455.0,0.01949636]
[1673400605446,5.51773389,17456.0,17455.0,0.01949636]
[1673400605663,6.09712495,17456.0,17455.0,0.01949636]
[1673400605883,6.23412495,17456.0,17455.0,0.01949636]
[1673400606988,6.23412495,17456.0,17455.0,0.01233317]
[1673400606989,8.25816471,17456.0,17455.0,0.01233317]
[1673400607255,9.10113425,17456.0,17455.0,0.00913368]
[1673400607470,9.33083279,17456.0,17455.0,0.00913368]
[1673400608148,8.48806029,17456.0,17455.0,0.00913368]
[1673400608596,8.65076029,17456.0,17455.0,0.00913368]
[1673400609287,6.62647955,17456.0,17455.0,0.00913368]
[1673400609507,5.5542622,17456.0,17455.0,0.00913368]
[1673400612903,5.5542622,17456.0,17455.0,0.00579092]
[1673400613120,6.39651985,17456.0,17455.0,0.00579092]
[1673400614469,5.5542622,17456.0,17455.0,0.00579092]
[1673400615398,5.5542622,17456.0,17455.0,0.00142587]
[1673400616054,5.61225273,17456.0,17455.0,0.00142587]
[1673400617620,8.479102,17456.0,17455.0,0.00142587]
[1673400617897,8.70880054,17456.0,17455.0,0.00142587]
[1673400618330,8.12940948,17456.0,17455.0,0.00142587]
[1673400618554,8.68332642,17456.0,17455.0,0.00142587]
[1673400618776,8.07141895,17456.0,17455.0,0.00142587]
[1673400619072,0.9024,17455.0,17454.0,0.01267554]
[1673400619317,5.3209355,17455.0,17454.0,0.01267554]
[1673400619539,5.90032656,17455.0,17454.0,0.01267554]
[1673400621122,6.03732656,17455.0,17454.0,0.01267554]
[1673400621342,5.03293757,17455.0,17454.0,0.01267554]
[1673400622265,5.87452656,17455.0,17454.0,0.01267554]
[1673400622979,5.03293757,17455.0,17454.0,0.01267554]
[1673400623424,5.03293757,17455.0,17454.0,0.00950463]
[1673400623860,5.2951355,17455.0,17454.0,0.00950463]
[1673400625032,5.2951355,17455.0,17454.0,0.00577638]
[1673400625463,5.2951955,17455.0,17454.0,0.00577638]
[1673400625689,5.28926146,17455.0,17454.0,0.00577638]
[1673400626137,4.669163,17455.0,17454.0,0.00577638]
[1673400626344,4.72872673,17455.0,17454.0,0.00577638]
[1673400626611,4.88570191,17455.0,17454.0,0.00577638]
[1673400627081,4.82588333,17455.0,17454.0,0.00577638]
[1673400627544,3.98391762,17455.0,17454.0,0.00577638]
[1673400627977,4.28391762,17455.0,17454.0,0.00577638]
[1673400628216,4.86330868,17455.0,17454.0,0.00577638]
[1673400628440,7.15082545,17455.0,17454.0,0.00577638]
[1673400630019,5.43068075,17455.0,17454.0,0.00577638]
[1673400630251,4.28391762,17455.0,17454.0,0.00577638]
[1673400630524,4.28385762,17455.0,17454.0,0.00577638]
[1673400630762,4.86324868,17455.0,17454.0,0.00577638]
[1673400630965,5.70521439,17455.0,17454.0,0.00577638]
[1673400631399,5.70521439,17455.0,17454.0,0.00519875]
[1673400632057,5.12582333,17455.0,17454.0,0.00519875]
[1673400633652,4.28385762,17455.0,17454.0,0.00519875]
[1673400634308,2.86370671,17455.0,17454.0,0.00519875]
[1673400634573,2.54422467,17455.0,17454.0,0.00519875]
[1673400635344,3.05286684,17455.0,17454.0,0.00519875]
[1673400635598,3.21586684,17455.0,17454.0,0.00519875]
[1673400635863,3.35286684,17455.0,17454.0,0.00719875]
[1673400636116,3.21586684,17455.0,17454.0,0.00519875]
[1673400636376,3.35286684,17455.0,17454.0,0.00719875]
[1673400637621,3.48955671,17455.0,17454.0,0.00719875]
[1673400637880,3.66384888,17455.0,17454.0,0.00719875]
[1673400638107,2.98539184,17455.0,17454.0,0.00719875]
[1673400638368,3.34436684,17455.0,17454.0,0.00719875]
[1673400639166,6.21108955,17455.0,17454.0,0.00719875]
[1673400639387,6.53057159,17455.0,17454.0,0.00719875]
[1673400639634,7.10996265,17455.0,17454.0,0.00719875]
[1673400639910,6.53057159,17455.0,17454.0,0.00647888]
[1673400640910,4.81053796,17455.0,17454.0,0.00647888]
[1673400641161,3.66384888,17455.0,17454.0,0.00647888]
[1673400641409,3.34436684,17455.0,17454.0,0.00647888]
[1673400644302,3.92238837,17455.0,17454.0,0.00647888]
[1673400644812,2.24689753,17455.0,17454.0,0.00647888]
[1673400645081,0.71502153,17455.0,17454.0,0.33347888]
[1673400645345,0.137,17455.0,17454.0,0.00647888]
[1673400645636,1.25363541,17455.0,17454.0,0.00647888]
[1673400645883,1.88220082,17455.0,17454.0,0.00647888]
[1673400646132,1.37399653,17455.0,17454.0,0.00647888]
[1673400646402,1.88211719,17455.0,17454.0,0.00647888]
[1673400646663,2.75501819,17455.0,17454.0,0.00647888]
[1673400647203,2.88136666,17455.0,17454.0,0.00647888]
[1673400647970,2.75501819,17455.0,17454.0,0.00647888]
[1673400649285,3.32791919,17455.0,17454.0,0.00647888]
[1673400649811,2.75501819,17455.0,17454.0,0.00647888]
[1673400650055,3.90155888,17455.0,17454.0,0.00647888]
[1673400650308,4.22104092,17455.0,17454.0,0.00647888]
[1673400650822,3.90155888,17455.0,17454.0,0.00647888]
[1673400652108,2.81541669,17455.0,17454.0,0.00647888]
[1673400652359,2.72889778,17455.0,17454.0,0.00647888]
[1673400652611,2.72890689,17455.0,17454.0,0.00647888]
[1673400654178,3.15759372,17455.0,17454.0,0.00647888]
[1673400654437,2.72890689,17455.0,17454.0,0.00647888]
[1673400654717,1.5823662,17455.0,17454.0,0.00647888]
[1673400654999,1.2233912,17455.0,17454.0,0.00647888]
[1673400655511,1.2233912,17455.0,17454.0,0.02659283]
[1673400655768,1.73852425,17455.0,17454.0,0.02659283]
[1673400656060,1.79749925,17455.0,17454.0,0.02659283]
[1673400656329,1.73852425,17455.0,17454.0,0.02659283]
[1673400656591,2.09749925,17455.0,17454.0,0.02659283]
[1673400657094,1.73852425,17455.0,17454.0,0.02659283]
[1673400657403,1.43852425,17455.0,17454.0,0.02659283]
[1673400657684,1.73852425,17455.0,17454.0,0.02659283]
[1673400657948,1.368876,17455.0,17454.0,0.02659283]
[1673400658198,1.30942567,17455.0,17454.0,0.02659283]
[1673400658761,1.50942567,17455.0,17454.0,0.02659283]
[1673400659025,1.20942567,17455.0,17454.0,0.02659283]
[1673400659293,1.54749549,17455.0,17454.0,0.02659283]
[1673400659513,2.69396103,17455.0,17454.0,0.02659283]
[1673400659814,2.69390613,17455.0,17454.0,0.02659283]
[1673400660072,3.20740163,17455.0,17454.0,0.02659283]
[1673400660347,2.90740163,17455.0,17454.0,0.02659283]
[1673400660599,2.69390613,17455.0,17454.0,0.02659283]
[1673400661677,2.49390613,17455.0,17454.0,0.02659283]
[1673400661927,3.00744487,17455.0,17454.0,0.02659283]
[1673400662181,2.81338817,17455.0,17454.0,0.02659283]
[1673400662479,3.00744998,17455.0,17454.0,0.02659283]
[1673400662698,3.00744998,17455.0,17454.0,0.02649736]
[1673400662953,2.70744998,17455.0,17454.0,0.02649736]
[1673400664223,2.19390613,17455.0,17454.0,0.02649736]
[1673400664722,2.49390613,17455.0,17454.0,0.02649736]
[1673400665220,1.64744059,17455.0,17454.0,0.02649736]
[1673400665470,1.64755302,17455.0,17454.0,0.02649736]
[1673400665722,1.64749815,17455.0,17454.0,0.02649736]
[1673400666505,0.795975,17455.0,17454.0,0.02649736]
[1673400666773,0.495975,17455.0,17454.0,0.02649736]
[1673400667022,1.00974089,17455.0,17454.0,0.02649736]
[1673400667284,1.00974769,17455.0,17454.0,0.02649736]
[1673400667552,1.00990399,17455.0,17454.0,0.18919736]
[1673400667851,0.65092899,17455.0,17454.0,0.18919736]
[1673400668942,1.79740499,17455.0,17454.0,0.18919736]
[1673400669139,2.15637999,17455.0,17454.0,0.18919736]
[1673400669421,1.79740499,17455.0,17454.0,0.18919736]
[1673400669650,2.15637999,17455.0,17454.0,0.18919736]
[1673400669904,2.01937999,17455.0,17454.0,0.18719736]